bitfinex-derivatives/quotes_BNBF0:USTF0_20250315
["timestamp","ask_amount","ask_price","bid_price","bid_amount"]
[1742024886659,0.29429673,592.0,591.05,6.99538084]
[1742024886864,0.30610474,591.99,591.05,6.99538084]
[1742024887058,0.30610474,592.14,591.05,6.99538084]
[1742024887264,0.33776366,592.13,591.05,6.99538084]
[1742024887464,0.30610474,592.12,591.05,6.99538084]
[1742024887665,0.33777507,592.11,591.05,6.99538084]
[1742024887865,0.30610474,592.1,591.05,6.99538084]
[1742024888068,0.33778648,592.09,591.05,6.99538084]
[1742024888267,0.30610474,592.08,591.05,6.99538084]
[1742024888566,0.33779789,592.07,591.05,6.99538084]
[1742024888766,0.30610474,592.06,591.05,6.99538084]
[1742024888960,0.30610474,592.06,591.05,6.657]
[1742024889361,0.33779789,592.07,591.05,6.657]
[1742024889562,0.29430295,592.05,591.05,6.657]
[1742024889765,0.64385656,592.04,591.05,6.657]
[1742024890067,0.64386226,592.03,591.05,6.657]
[1742024890266,0.30604155,592.02,591.05,6.657]
[1742024894567,0.30603219,592.0,591.05,6.657]
[1742024895563,0.29430793,591.99,591.05,6.657]
[1742024895868,0.30603219,591.98,591.05,6.657]
[1742024898365,0.30603219,591.97,591.05,6.657]
[1742024898565,0.29431042,591.97,591.05,6.657]
[1742024898964,0.30603773,591.96,591.05,6.657]
[1742024901468,0.29431291,591.95,591.05,6.657]
[1742024901867,0.30603773,591.94,591.05,6.657]
[1742024904475,0.30603773,592.02,591.05,6.657]
[1742024904668,0.2943154,591.93,591.05,6.657]
[1742024904867,0.30603773,591.92,591.05,6.657]
[1742024905071,0.30603773,592.02,591.05,6.657]
[1742024906368,0.33782071,592.03,591.05,6.657]
[1742024906674,0.30607579,592.02,591.05,6.657]
[1742024908471,0.30608175,592.01,591.05,6.657]
[1742024908675,0.30608175,592.02,591.05,6.657]
[1742024908875,0.30608175,592.01,591.05,6.657]
[1742024909071,0.30608175,592.02,591.05,6.657]
[1742024909276,0.30608175,592.01,591.05,6.657]
[1742024909474,0.30608175,592.02,591.05,6.657]
[1742024910279,0.33782071,592.03,591.05,6.657]
[1742024910476,0.29429549,592.01,591.05,6.657]
[1742024910678,0.30612319,592.0,591.05,6.657]
[1742024913576,0.33784354,591.99,591.05,6.657]
[1742024913775,0.30612319,591.98,591.05,6.657]
[1742024913974,0.64391994,591.97,591.05,6.657]
[1742024914181,0.64392565,591.96,591.05,6.657]
[1742024914375,0.64393136,591.95,591.05,6.657]
[1742024914687,0.64393707,591.94,591.05,6.657]
[1742024914872,0.30606499,591.93,591.05,6.657]
[1742024915580,0.29434652,591.92,591.05,6.657]
[1742024915782,0.30606499,591.91,591.05,6.657]
[1742024916081,0.64395419,591.91,591.05,6.657]
[1742024916281,0.30606499,591.9,591.05,6.657]
[1742024918476,0.29435025,591.89,591.05,6.657]
[1742024918677,0.30606959,591.88,591.05,6.657]
[1742024919482,0.30606959,591.87,591.05,6.657]
[1742024919685,0.29435274,591.87,591.05,6.657]
[1742024919878,0.33791775,591.86,591.05,6.657]
[1742024920083,0.30583729,591.85,591.05,6.657]
[1742024920387,0.33792917,591.84,591.05,6.657]
[1742024920587,0.30583729,591.83,591.05,6.657]
[1742024920884,0.33794059,591.82,591.05,6.657]
[1742024921084,0.30583729,591.81,591.05,6.657]
[1742024921483,0.33795201,591.8,591.05,6.657]
[1742024921787,0.30593892,591.79,591.05,6.657]
[1742024921986,0.33796343,591.78,591.05,6.657]
[1742024922188,0.30593892,591.77,591.05,6.657]
[1742024922388,0.33797485,591.76,591.05,6.657]
[1742024922588,0.30593892,591.75,591.05,6.657]
[1742024922886,0.33798627,591.74,591.05,6.657]
[1742024923088,0.30593892,591.73,591.05,6.657]
[1742024923288,0.3379977,591.72,591.05,6.657]
[1742024923490,0.30593892,591.71,591.05,6.657]
[1742024923681,0.33800912,591.7,591.05,6.657]
[1742024923885,0.30593892,591.69,591.05,6.657]
[1742024924089,0.33802055,591.68,591.05,6.657]
[1742024924285,0.30593892,591.67,591.05,6.657]
[1742024924483,0.64396518,591.67,591.05,6.657]
[1742024924689,0.30593892,591.66,591.05,6.657]
[1742024925585,0.29443991,591.65,591.05,6.657]
[1742024925989,0.3059355,591.64,591.05,6.657]
[1742024928590,0.2944424,591.63,591.05,6.657]
[1742024928788,0.3059355,591.62,591.05,6.657]
[1742024929394,0.30591756,591.61,591.05,6.657]
[1742024929594,0.30591756,591.62,591.05,6.657]
[1742024929895,0.30591756,591.61,591.05,6.657]
[1742024930095,0.30591756,591.6,591.05,6.657]
[1742024930291,0.30591756,591.62,591.05,6.657]
[1742024930492,0.30591756,591.61,591.05,6.657]
[1742024930891,0.30591756,591.6,591.05,6.657]
[1742024931091,0.30591756,591.62,591.05,6.657]
[1742024931497,0.29444489,591.61,591.05,6.657]
[1742024931693,0.30591756,591.6,591.05,6.657]
[1742024934695,0.60034003,591.59,591.05,6.657]
[1742024934897,0.30591756,591.58,591.05,6.657]
[1742024937595,0.60030158,591.57,591.05,6.657]
[1742024937797,0.30585669,591.56,591.05,6.657]
[1742024938796,0.29444489,591.57,591.05,6.657]
[1742024938990,0.30584202,591.56,591.05,6.657]
[1742024940097,0.33809483,591.55,591.05,6.657]
[1742024940596,0.60022481,591.54,591.05,6.657]
[1742024940797,0.30572012,591.53,591.05,6.657]
[1742024941700,0.33811198,591.52,591.05,6.657]
[1742024942100,0.30572012,591.51,591.05,6.657]
[1742024942299,0.33812341,591.5,591.05,6.657]
[1742024942499,0.30572012,591.49,591.05,6.657]
[1742024942699,0.33813484,591.48,591.05,6.657]
[1742024942901,0.30572012,591.47,591.05,6.657]
[1742024943098,0.33814628,591.46,591.05,6.657]
[1742024943298,0.30572012,591.45,591.05,6.657]
[1742024943493,0.30572012,591.45,590.1,0.2945184]
[1742024943698,0.33815771,591.44,590.11,0.33891986]
[1742024943899,0.30566593,591.43,590.11,0.33891986]
[1742024944201,0.33816915,591.42,590.11,0.33891986]
[1742024944599,0.30566593,591.41,590.11,0.33891986]
[1742024945795,0.33816915,591.42,590.11,0.33891986]
[1742024945999,0.30566082,591.41,590.11,0.33891986]
[1742024946701,0.29465182,591.4,590.12,1.558]
[1742024946905,0.30566082,591.39,590.13,0.33890837]
[1742024947205,0.30566082,591.39,590.13,1.80390837]
[1742024947399,0.30566082,591.39,590.14,0.812]
[1742024948305,0.30566082,591.39,590.14,0.8066043]
[1742024951408,0.30548068,591.38,590.14,0.8066043]
[1742024951607,0.30548068,591.39,590.14,0.8066043]
[1742024951807,0.30548068,591.38,590.14,0.8066043]
[1742024952003,0.30548068,591.37,590.14,0.8066043]
[1742024952199,0.30548068,591.39,590.14,0.8066043]
[1742024952401,0.30548068,591.38,590.14,0.8066043]
[1742024952606,0.30548068,591.37,590.14,0.8066043]
[1742024952799,0.30548068,591.36,590.14,0.8066043]
[1742024953000,0.30548068,591.39,590.14,0.8066043]
[1742024953204,0.30548068,591.38,590.14,0.8066043]
[1742024953402,0.30548068,591.39,590.14,0.8066043]
[1742024953604,0.30548068,591.37,590.14,0.8066043]
[1742024953799,0.30548068,591.36,590.14,0.8066043]
[1742024954006,0.30548068,591.39,590.14,0.8066043]
[1742024954205,0.30548068,591.38,590.14,0.8066043]
[1742024954407,0.30548068,591.39,590.14,0.8066043]
[1742024955403,0.30548068,591.41,590.14,0.8066043]
[1742024955605,0.29464932,591.38,590.14,0.8066043]
[1742024955808,0.30548068,591.37,590.14,0.8066043]
[1742024956209,0.30548068,591.37,590.15,0.33889689]
[1742024958416,0.30548068,591.36,590.15,0.33889689]
[1742024958611,0.29462936,591.36,590.15,0.33889689]
[1742024958814,0.30548068,591.35,590.15,0.33889689]
[1742024959015,0.29462936,591.36,590.15,0.33889689]
[1742024959216,0.30545371,591.35,590.15,0.33889689]
[1742024960917,0.29462936,591.36,590.15,0.33889689]
[1742024961117,0.30545863,591.35,590.15,0.33889689]
[1742024961317,0.33816915,591.42,590.15,0.33889689]
[1742024962523,0.33816915,591.42,590.15,1.19589689]
[1742024964223,0.33816915,591.42,590.16,0.31097682]
[1742024964423,0.33816915,591.42,590.18,0.33887966]
[1742024964623,0.33816915,591.42,590.19,0.31097682]
[1742024964824,0.33816915,591.42,590.2,0.33886818]
[1742024965026,0.33816915,591.42,590.21,0.31097682]
[1742024965820,0.33816915,591.42,590.22,0.33885669]
[1742024966027,0.33816915,591.42,590.23,0.31097682]
[1742024966223,0.33816915,591.42,590.24,0.33884521]
[1742024968128,0.33816915,591.42,590.25,0.779]
[1742024968331,0.33816915,591.42,590.26,0.33883373]
[1742024970127,0.30562247,591.41,590.26,0.33883373]
[1742024970327,0.33816915,591.42,590.26,0.33883373]
[1742024971430,0.30562474,591.41,590.26,0.33883373]
[1742024973639,0.33816915,591.42,590.26,0.33883373]
[1742024977732,0.33816915,591.42,590.27,0.83]
[1742024977933,0.33816915,591.42,590.28,0.33882225]
[1742024980336,0.33816915,591.42,590.28,1.19682225]
[1742024984136,0.30562819,591.41,590.28,1.19682225]
[1742024987841,0.30562819,591.41,590.28,2.20382225]
[1742024990136,0.33816915,591.42,590.29,0.31097057]
[1742024990338,0.33816915,591.42,590.3,0.33881077]
[1742024990536,0.30565398,591.41,590.3,0.33881077]
[1742024990941,0.33816915,591.42,590.3,0.33881077]
[1742024991339,0.30563883,591.41,590.3,0.33881077]
[1742024995244,0.30563883,591.41,590.3,1.10381077]
[1742024995645,0.30563883,591.41,590.3,1.86981077]
[1742024997556,0.29459195,591.4,590.3,1.86981077]
[1742024997856,0.30563883,591.39,590.3,1.86981077]
[1742024998450,0.30563883,591.39,590.3,2.79781077]
[1742024998647,0.29459195,591.4,590.3,2.79781077]
[1742024998854,0.30565837,591.39,590.3,2.79781077]
[1742025000449,0.30565837,591.41,590.3,2.79781077]
[1742025000656,0.30565837,591.38,590.3,2.79781077]
[1742025000849,0.30565837,591.37,590.3,2.79781077]
[1742025001053,0.30565837,591.4,590.3,2.79781077]
[1742025003654,0.60026404,591.39,590.3,2.79781077]
[1742025003957,0.30565837,591.38,590.3,2.79781077]
[1742025005657,0.29460567,591.39,590.3,2.79781077]
[1742025005860,0.30568431,591.38,590.3,2.79781077]
[1742025006556,0.29460816,591.37,590.3,2.79781077]
[1742025006954,0.30568431,591.36,590.3,2.79781077]
[1742025007561,0.30568431,591.36,590.3,3.76081077]
[1742025009557,0.29461066,591.36,590.3,3.76081077]
[1742025009762,0.30568431,591.35,590.3,3.76081077]
[1742025012570,0.30568431,591.34,590.3,3.76081077]
[1742025012870,0.30568431,591.33,590.3,3.76081077]
[1742025013072,0.30568431,591.35,590.3,3.76081077]
[1742025013275,0.2946119,591.36,590.3,3.76081077]
[1742025013276,0.30568431,591.34,590.3,3.76081077]
[1742025013470,0.30568431,591.33,590.3,3.76081077]
[1742025013666,0.30568431,591.35,590.3,3.76081077]
[1742025013868,0.30568431,591.34,590.3,3.76081077]
[1742025014066,0.30568431,591.33,590.3,3.76081077]
[1742025014272,0.30568431,591.35,590.3,3.76081077]
[1742025014971,0.2946119,591.36,590.3,3.76081077]
[1742025015167,0.30566921,591.35,590.3,3.76081077]
[1742025018677,0.30566921,591.34,590.3,3.76081077]
[1742025018873,0.2946119,591.36,590.3,3.76081077]
[1742025018874,0.30566921,591.35,590.3,3.76081077]
[1742025019075,0.30566921,591.34,590.3,3.76081077]
[1742025019268,0.30566921,591.35,590.3,3.76081077]
[1742025021670,0.33816915,591.42,590.3,3.76081077]
[1742025021671,0.30566921,591.34,590.3,4.80481077]
[1742025021873,0.30566921,591.33,590.3,4.80481077]
[1742025022074,0.30566921,591.32,590.3,4.80481077]
[1742025022274,0.30566921,591.35,590.3,4.80481077]
[1742025022476,0.30566921,591.31,590.3,4.80481077]
[1742025022774,0.30566921,591.3,590.3,4.80481077]
[1742025022969,0.30566921,591.35,590.3,4.80481077]
[1742025023176,0.30566921,591.34,590.3,4.80481077]
[1742025023474,0.2946119,591.36,590.3,4.80481077]
[1742025023475,0.30566921,591.33,590.3,4.80481077]
[1742025023675,0.30566921,591.35,590.3,4.80481077]
[1742025024577,0.29464433,591.34,590.3,4.80481077]
[1742025024971,0.30566921,591.33,590.3,4.80481077]
[1742025027580,0.60031604,591.32,590.3,4.80481077]
[1742025027880,0.30566921,591.31,590.3,4.80481077]
[1742025030076,0.30568705,591.3,590.3,4.80481077]
[1742025030273,0.30568705,591.31,590.3,4.80481077]
[1742025030472,0.30568705,591.3,590.3,4.80481077]
[1742025030675,0.29468924,591.29,590.3,4.80481077]
[1742025030874,0.30568705,591.28,590.3,4.80481077]
[1742025032175,0.30569482,591.27,590.3,4.80481077]
[1742025032377,0.30569482,591.28,590.3,4.80481077]
[1742025032679,0.64394976,591.27,590.3,4.466]
[1742025032879,0.64395548,591.26,590.3,4.466]
[1742025033079,0.30569482,591.25,590.3,4.466]
[1742025033477,0.29470921,591.24,590.3,4.466]
[1742025033676,0.30569482,591.23,590.3,4.466]
[1742025034077,0.33828354,591.22,590.3,4.466]
[1742025034278,0.30569482,591.21,590.3,4.466]
[1742025034480,0.33829499,591.2,590.3,4.466]
[1742025034675,0.30569482,591.19,590.3,4.466]
[1742025034877,0.33830643,591.18,590.3,4.466]
[1742025035078,0.30569482,591.17,590.3,4.466]
[1742025035382,0.33831788,591.16,590.3,4.466]
[1742025035581,0.30569482,591.15,590.3,4.466]
[1742025035780,0.33831788,591.16,590.3,4.466]
[1742025035978,0.30574036,591.15,590.3,4.466]
[1742025036781,0.29472418,591.14,590.3,4.466]
[1742025036973,0.30574036,591.13,590.3,4.466]
[1742025037577,0.29472418,591.14,590.3,4.466]
[1742025037779,0.30573384,591.13,590.3,4.466]
[1742025037982,0.29472418,591.14,590.3,4.466]
[1742025038181,0.30571407,591.13,590.3,4.466]
[1742025039480,0.30571407,591.15,590.3,4.466]
[1742025039786,0.29472668,591.12,590.3,4.466]
[1742025039985,0.30572021,591.11,590.3,4.466]
[1742025041979,0.30570797,591.11,590.3,4.466]
[1742025042282,0.30570797,591.1,590.3,4.466]
[1742025042481,0.30570797,591.15,590.3,4.466]
[1742025045388,0.33831788,591.16,590.3,4.466]
[1742025045582,0.29472418,591.14,590.3,4.466]
[1742025045782,0.3057634,591.13,590.3,4.466]
[1742025048589,0.2947167,591.12,590.3,4.466]
[1742025048987,0.3057634,591.11,590.3,4.466]
[1742025051190,0.2947167,591.12,590.3,4.466]
[1742025051486,0.30575941,591.11,590.3,4.466]
[1742025051790,0.30575941,591.1,590.3,4.466]
[1742025051985,2.69228718,591.57,590.3,4.466]
[1742025052190,0.30575941,591.56,590.3,4.466]
[1742025052592,0.30575941,591.55,590.3,4.466]
[1742025052888,0.30575941,591.54,590.3,4.466]
[1742025053092,0.30576536,591.53,590.3,4.466]
[1742025053292,0.30576536,591.52,590.3,4.466]
[1742025053493,0.30576536,591.51,590.3,4.466]
[1742025053689,0.30576536,591.5,590.3,4.466]
[1742025053994,0.30576536,591.49,590.3,4.466]
[1742025054190,0.30576536,591.48,590.3,4.466]
[1742025054388,4.65246398,591.54,590.3,4.466]
[1742025054389,0.30576536,591.53,590.3,4.466]
[1742025054594,0.29466928,591.48,590.3,4.466]
[1742025054894,0.30576536,591.47,590.3,4.466]
[1742025057498,2.68760127,591.6,590.3,4.466]
[1742025057799,0.29468425,591.46,590.3,4.466]
[1742025057998,0.30576536,591.45,590.3,4.466]
[1742025058199,0.30576536,591.44,590.3,4.466]
[1742025058400,0.30576536,591.59,590.3,4.466]
[1742025058593,0.30576536,591.58,590.3,4.466]
[1742025058797,4.64313192,591.59,590.3,4.466]
[1742025058997,2.68759403,591.58,590.3,4.466]
[1742025059200,0.30575812,591.57,590.3,4.466]
[1742025059402,0.30575812,591.56,590.3,4.466]
[1742025059599,0.30575812,591.55,590.3,4.466]
[1742025059793,0.30575812,591.54,590.3,4.466]
[1742025059996,0.30575812,591.53,590.3,4.466]
[1742025060301,0.30575812,591.52,590.3,4.466]
[1742025060498,0.30575812,591.51,590.3,4.466]
[1742025060803,0.30575812,591.5,590.3,4.466]
[1742025061003,0.30575812,591.49,590.3,4.466]
[1742025061203,0.30575812,591.51,590.3,4.466]
[1742025061404,0.30575812,591.5,590.3,4.466]
[1742025061704,0.29467427,591.52,590.3,4.466]
[1742025061705,0.30575812,591.49,590.3,4.466]
[1742025061900,0.30575812,591.48,590.3,4.466]
[1742025062102,0.30575812,591.47,590.3,4.466]
[1742025062302,0.30575812,591.51,590.3,4.466]
[1742025063503,0.29459819,591.5,590.3,4.466]
[1742025063705,0.30575812,591.49,590.3,4.466]
[1742025063906,0.29459819,591.5,590.3,4.466]
[1742025064403,0.30598252,591.49,590.3,4.466]
[1742025064603,0.29459819,591.5,590.3,4.466]
[1742025064804,0.30602816,591.49,590.3,4.466]
[1742025066404,0.30602816,592.44,590.3,4.466]
[1742025066604,2.57270923,592.45,590.3,4.466]
[1742025066605,0.30602816,592.43,590.3,4.466]
[1742025066801,0.30602816,592.42,590.3,4.466]
[1742025067001,0.30602816,592.41,590.3,4.466]
[1742025067206,0.30602816,592.4,590.3,4.466]
[1742025067406,0.30602816,592.39,590.3,4.466]
[1742025067708,0.30610705,592.38,590.3,4.466]
[1742025067908,0.30610705,592.37,590.3,4.466]
[1742025068103,2.57270923,592.34,590.3,4.466]
[1742025068308,0.30610705,592.33,590.3,4.466]
[1742025068503,0.30610705,592.32,590.3,4.466]
[1742025068702,0.33771233,592.22,590.3,4.466]
[1742025068907,0.30610705,592.21,590.3,4.466]
[1742025069205,0.33772944,592.19,590.3,4.466]
[1742025069411,0.30610705,592.18,590.3,4.466]
[1742025069612,0.33774655,592.16,590.3,4.466]
[1742025069810,0.30610705,592.15,590.3,4.466]
[1742025070005,0.33776366,592.13,590.3,4.466]
[1742025070312,0.30610705,592.12,590.3,4.466]
[1742025070611,0.33776366,592.13,590.3,4.466]
[1742025070612,0.30610705,592.11,590.3,4.466]
[1742025070806,0.33778648,592.09,590.3,4.466]
[1742025071005,0.30610705,592.08,590.3,4.466]
[1742025071205,0.30610705,592.07,590.3,4.466]
[1742025071511,0.30618455,592.06,590.31,0.33880503]
[1742025071704,0.33781501,592.04,590.31,0.33880503]
[1742025071908,0.30618455,592.03,590.31,0.33880503]
[1742025072108,0.33783213,592.01,590.31,0.33880503]
[1742025072306,0.30618455,592.0,590.31,0.33880503]
[1742025072510,0.33784925,591.98,590.31,0.33880503]
[1742025072812,0.30618455,591.97,590.31,0.33880503]
[1742025073012,0.33786637,591.95,590.31,0.33880503]
[1742025073213,0.30618455,591.94,590.31,0.33880503]
[1742025073507,0.33788349,591.92,590.31,0.33880503]
[1742025073712,0.30635943,591.91,590.31,0.33880503]
[1742025074115,0.33790062,591.89,590.31,0.33880503]
[1742025074413,0.30635943,591.88,590.31,0.33880503]
[1742025074614,0.33791204,591.87,590.31,1.27480503]
[1742025074813,0.64427147,591.87,590.32,0.31095527]
[1742025075016,0.30635943,591.86,590.33,0.33879355]
[1742025075218,0.30635943,591.85,590.34,0.31095527]
[1742025075517,7.03428464,592.39,590.35,0.33878207]
[1742025075518,0.6442886,591.84,590.35,0.33878207]
[1742025075716,0.30635943,591.83,590.36,0.31095527]
[1742025076014,0.30635943,591.82,590.37,0.3387706]
[1742025076215,0.64430573,591.81,590.38,0.31095527]
[1742025076418,0.30635943,591.8,590.38,0.31095527]
[1742025076613,0.30635943,591.79,590.38,0.31095527]
[1742025076815,0.30635943,591.8,590.39,0.33875912]
[1742025077015,0.29449223,591.84,590.39,0.33875912]
[1742025077016,0.33796343,591.78,590.39,0.33875912]
[1742025077210,0.30638768,591.77,590.39,0.33875912]
[1742025077416,0.33797485,591.76,590.39,0.33875912]
[1742025077716,0.30638768,591.75,590.4,0.31095384]
[1742025077917,0.64437395,591.74,590.41,0.33874764]
[1742025078118,0.64437966,591.73,590.41,0.33874764]
[1742025078414,0.64438538,591.72,590.41,0.33874764]
[1742025078619,0.64439109,591.71,590.41,0.33874764]
[1742025078919,0.6443968,591.7,590.41,0.33874764]
[1742025079117,0.64434653,591.69,590.41,0.33874764]
[1742025079314,0.64435225,591.68,590.41,0.33874764]
[1742025079515,0.64435796,591.67,590.41,0.33874764]
[1742025079717,0.64436367,591.66,590.41,0.33874764]
[1742025079918,0.64436939,591.65,590.41,0.33874764]
[1742025080117,0.6443751,591.64,590.41,0.33874764]
[1742025080319,0.64438081,591.63,590.41,0.33874764]
[1742025080514,0.64438653,591.62,590.41,0.33874764]
[1742025080715,0.64439224,591.61,590.41,0.33874764]
[1742025080915,0.33806626,591.6,590.41,0.33874764]
[1742025081113,0.30630855,591.59,590.41,0.33874764]
[1742025081318,0.33807769,591.58,590.41,0.33874764]
[1742025081517,0.30630855,591.57,590.41,0.33874764]
[1742025081721,0.33808912,591.56,590.41,0.33874764]
[1742025081914,0.30630855,591.55,590.41,0.33874764]
[1742025082114,0.33810055,591.54,590.41,0.33874764]
[1742025082314,0.30630855,591.53,590.41,0.33874764]
[1742025082517,0.64441481,591.53,590.41,0.33874764]
[1742025082717,0.30630855,591.52,590.41,0.33874764]
[1742025084623,0.60088968,591.51,590.41,0.33874764]
[1742025084824,0.30631518,591.5,590.41,0.33874764]
[1742025085325,0.30631685,591.49,590.41,0.33874764]
[1742025085526,0.30631685,591.48,590.41,0.33874764]
[1742025085727,0.30631685,591.5,590.41,0.33874764]
[1742025086027,0.30631685,591.49,590.41,0.33874764]
[1742025086222,0.30631685,591.5,590.41,1.25774764]
[1742025086422,0.30631685,591.49,590.41,1.25774764]
[1742025086623,0.30631685,591.5,590.41,1.25774764]
[1742025086824,0.30631685,591.49,590.41,1.25774764]
[1742025087027,0.30631685,591.5,590.41,1.25774764]
[1742025087227,0.30631685,591.49,590.41,1.25774764]
[1742025087427,0.30631685,591.48,590.41,1.25774764]
[1742025087627,0.30631685,591.52,590.41,1.25774764]
[1742025087827,0.30631685,591.51,590.41,1.25774764]
[1742025088127,0.30631685,591.5,590.41,1.25774764]
[1742025088325,0.30631685,591.52,590.41,1.25774764]
[1742025088525,0.33810626,591.53,590.41,1.25774764]
[1742025088526,0.30631685,591.51,590.41,1.25774764]
[1742025088721,0.30631685,591.52,590.41,1.25774764]
[1742025088924,0.30631685,591.51,590.41,1.25774764]
[1742025089122,0.30631685,591.52,590.41,1.25774764]
[1742025089423,0.33810626,591.53,590.41,1.25774764]
[1742025089424,0.30631685,591.51,590.41,1.25774764]
[1742025089629,0.30631685,591.52,590.41,2.31274764]
[1742025089829,0.30631685,591.51,590.41,2.31274764]
[1742025090030,0.30631685,591.52,590.41,2.31274764]
[1742025090225,0.33810626,591.53,590.41,2.31274764]
[1742025090429,0.30638431,591.52,590.41,3.15274764]
[1742025091832,0.30638431,591.52,590.41,4.17974764]
[1742025092832,0.30638431,591.52,590.41,5.07474764]
[1742025097933,0.30636364,591.51,590.41,5.07474764]
[1742025098132,0.33810626,591.53,590.41,5.07474764]
[1742025098133,0.30636364,591.52,590.41,5.07474764]
[1742025098334,0.30636364,591.51,590.41,5.07474764]
[1742025098534,0.30636364,591.5,590.41,5.07474764]
[1742025098837,0.30636364,591.49,590.41,5.07474764]
[1742025099030,0.30636364,591.48,590.41,5.07474764]
[1742025099234,0.30636364,591.52,590.41,5.07474764]
[1742025099435,0.33810626,591.53,590.41,5.07474764]
[1742025099436,0.30636364,591.51,590.41,5.07474764]
[1742025099629,0.29454707,591.48,590.41,5.07474764]
[1742025099830,0.30636364,591.47,590.41,5.07474764]
[1742025101439,0.30636536,591.46,590.41,5.07474764]
[1742025101633,0.30636536,591.47,590.41,5.07474764]
[1742025101939,0.30636536,591.46,590.41,5.07474764]
[1742025102141,0.30636536,591.47,590.41,5.07474764]
[1742025102339,0.30636536,591.46,590.41,5.07474764]
[1742025102537,0.30636536,591.52,590.41,5.07474764]
[1742025102739,0.29454707,591.48,590.41,5.07474764]
[1742025103040,0.30636536,591.47,590.41,5.07474764]
[1742025105438,0.33810626,591.53,590.41,5.07474764]
[1742025105638,0.29454707,591.48,590.41,5.07474764]
[1742025105842,0.30642426,591.47,590.41,5.07474764]
[1742025108440,0.30642426,591.46,590.41,5.07474764]
[1742025108646,0.30642426,591.45,590.41,5.07474764]
[1742025108845,0.29454707,591.48,590.41,5.07474764]
[1742025109246,0.29454707,591.48,590.41,6.46374764]
[1742025109442,0.30629791,591.47,590.41,6.46374764]
[1742025111444,0.30629791,591.46,590.41,6.46374764]
[1742025111647,0.29456826,591.46,590.41,6.46374764]
[1742025111847,0.30629791,591.45,590.41,6.46374764]
[1742025113951,0.29456826,591.46,590.41,6.46374764]
[1742025114347,0.33810626,591.53,590.41,6.46374764]
[1742025114646,0.29456203,591.45,590.41,6.46374764]
[1742025114850,0.33810626,591.53,590.41,6.46374764]
[1742025115247,0.30618697,591.52,590.41,6.46374764]
[1742025116044,0.33810626,591.53,590.41,6.46374764]
[1742025116352,0.30618506,591.52,590.41,6.46374764]
[1742025117647,0.29456203,591.51,590.41,6.46374764]
[1742025117847,0.30618506,591.5,590.41,6.46374764]
[1742025118951,0.30624562,591.49,590.41,6.46374764]
[1742025119151,0.30624562,591.5,590.41,6.46374764]
[1742025119355,0.30624562,591.49,590.41,6.46374764]
[1742025119548,0.30624562,591.48,590.41,6.46374764]
[1742025119752,0.29456203,591.51,590.41,6.46374764]
[1742025119753,0.30624562,591.5,590.41,6.46374764]
[1742025119952,0.30624562,591.49,590.41,6.46374764]
[1742025120151,0.30624562,591.5,590.41,6.46374764]
[1742025120352,0.30624562,591.49,590.41,6.46374764]
[1742025120658,0.30624562,591.48,590.41,6.46374764]
[1742025123552,0.29456702,591.47,590.41,6.46374764]
[1742025123756,0.30624562,591.46,590.41,6.46374764]
[1742025123957,0.29456702,591.47,590.41,6.46374764]
[1742025124157,0.30625564,591.46,590.41,6.46374764]
[1742025125960,0.30629109,591.45,590.41,6.46374764]
[1742025126160,0.30629109,591.44,590.41,6.46374764]
[1742025126362,0.30629109,591.43,590.41,6.46374764]
[1742025126557,0.30629109,591.52,590.41,6.46374764]
[1742025126762,0.33810626,591.53,590.41,6.46374764]
[1742025126955,0.30631726,591.52,590.41,6.46374764]
[1742025130263,0.30630637,591.51,590.41,6.46374764]
[1742025130458,0.30630637,591.52,590.41,6.46374764]
[1742025130661,0.30630637,591.51,590.41,6.46374764]
[1742025130858,0.30630637,591.5,590.41,6.46374764]
[1742025131059,0.30630637,591.49,590.41,6.46374764]
[1742025131260,0.30630637,591.52,590.41,6.46374764]
[1742025131463,0.33810626,591.53,590.41,6.46374764]
[1742025131663,0.30633374,591.52,590.41,6.46374764]
[1742025133164,0.33810626,591.53,590.41,6.46374764]
[1742025136466,0.30632483,591.52,590.41,6.46374764]
[1742025140670,0.30632483,591.52,590.42,0.31090486]
[1742025140865,0.30632483,591.52,590.43,0.33873617]
[1742025141071,0.33810626,591.53,590.43,0.33873617]
[1742025141072,0.3064191,591.51,590.43,0.33873617]
[1742025141370,0.33810626,591.53,590.43,0.33873617]
[1742025141371,0.3064191,591.5,590.43,0.33873617]
[1742025141570,0.3064191,591.52,590.43,0.33873617]
[1742025141770,0.33810626,591.53,590.43,0.33873617]